bitfinex/quotes_ETHUSD_20240916
["timestamp","ask_amount","ask_price","bid_price","bid_amount"]
[1726477250998,33.221217,2320.6,2320.5,0.0385021]
[1726477258786,33.221217,2320.6,2320.5,0.08983784]
[1726477259096,33.221217,2320.6,2320.5,0.0385021]
[1726477259295,28.675217,2320.6,2320.5,0.0385021]
[1726477259717,28.675217,2320.6,2320.5,0.08983784]
[1726477259862,28.675217,2320.6,2320.5,0.0385021]
[1726477260059,33.221217,2320.6,2320.5,0.08983784]
[1726477260367,28.675217,2320.6,2320.5,0.08983784]
[1726477260574,19.61919535,2320.6,2320.5,0.08983784]
[1726477260959,14.239357,2320.6,2320.5,2.42673784]
[1726477261108,18.548587,2320.6,2320.5,2.42673784]
[1726477261277,18.548587,2320.6,2320.5,0.08983784]
[1726477262006,21.548587,2320.6,2320.5,0.08983784]
[1726477265109,15.30996535,2320.6,2320.5,2.41313784]
[1726477265294,12.30996535,2320.6,2320.5,2.41313784]
[1726477265509,11.85907141,2320.6,2320.5,2.41313784]
[1726477265878,7.54984141,2320.6,2320.5,2.41313784]
[1726477266083,7.54984141,2320.6,2320.5,2.65445162]
[1726477267635,3.24061141,2320.6,2320.5,2.65445162]
[1726477267799,3.0,2320.6,2320.5,2.65445162]
[1726477268005,4.30898,2320.8,2320.5,2.65445162]
[1726477268321,4.30915,2320.7,2320.5,2.65445162]
[1726477268505,4.30915,2320.7,2320.6,0.54873792]
[1726477268699,4.30915,2320.7,2320.6,2.38709599]
[1726477270118,4.30898,2320.8,2320.6,2.38709599]
[1726477270499,8.61794,2320.8,2320.6,2.38709599]
[1726477271032,4.30896,2320.8,2320.6,2.38709599]
[1726477271320,11.61796,2320.8,2320.7,2.64869119]
[1726477271883,11.61796,2320.8,2320.7,2.69838718]
[1726477272687,3.0,2320.8,2320.7,2.69838718]
[1726477273454,7.30885,2320.8,2320.7,2.69838718]
[1726477273732,3.0,2320.8,2320.7,2.69838718]
[1726477274086,3.0,2321.0,2320.7,2.69838718]
[1726477274391,4.30813,2321.2,2320.9,2.3035]
[1726477274611,8.61634,2321.2,2321.1,2.3035]
[1726477275023,8.61634,2321.2,2321.1,2.35296031]
[1726477275329,4.30786,2321.4,2321.1,2.35296031]
[1726477275543,8.61501,2321.6,2321.3,2.3116]
[1726477275838,8.61312,2322.1,2321.7,2.3116]
[1726477276129,4.30663,2322.0,2321.8,2.3141]
[1726477276337,4.30663,2322.0,2321.8,2.36309979]
[1726477276626,4.30663,2322.0,2321.9,2.68304914]
[1726477277132,4.30663,2322.0,2321.9,2.73168492]
[1726477279488,4.30653,2322.1,2321.9,2.73168492]
[1726477279944,4.30599,2322.4,2321.9,8.96037803]
[1726477280146,4.30546,2322.7,2322.1,6.42970311]
[1726477280441,4.30561,2322.6,2322.3,2.254]
[1726477280622,4.30525,2322.8,2322.3,4.25955485]
[1726477280825,4.30525,2322.8,2322.4,2.97546689]
[1726477281145,4.30479,2323.0,2322.6,2.4241]
[1726477281310,4.30479,2323.0,2322.6,6.72961]
[1726477281495,4.30479,2323.0,2322.7,2.47015605]
[1726477281831,8.60931,2323.1,2322.9,2.2814]
[1726477282008,4.3046,2323.1,2322.9,2.2814]
[1726477282203,4.3046,2323.1,2323.0,0.04605605]
[1726477282827,7.3046,2323.1,2323.0,0.04605605]
[1726477283193,11.60934,2323.1,2323.0,0.04605605]
[1726477286976,11.60934,2323.1,2323.0,0.27880166]
[1726477286977,7.3046,2323.1,2323.0,0.27880166]
[1726477289034,11.60934,2323.1,2323.0,0.27880166]
[1726477289230,11.60934,2323.1,2323.0,0.04605605]
[1726477289458,15.91408,2323.1,2323.0,0.04605605]
[1726477289772,15.91408,2323.1,2322.7,2.2894]
[1726477289773,8.61028,2322.8,2322.7,2.2894]
[1726477290270,8.61028,2322.8,2322.7,2.33480376]
[1726477290466,11.61028,2322.8,2322.7,0.04540376]
[1726477290625,4.30644,2322.1,2322.0,8.7960378]
[1726477290829,2.20831615,2322.5,2322.0,1.3960378]
[1726477291063,4.30644,2322.1,2322.0,0.5]
[1726477291256,4.30644,2322.1,2322.0,2.9353]
[1726477291563,8.61288,2322.1,2322.0,2.9353]
[1726477293505,11.61288,2322.1,2322.0,2.9353]
[1726477293718,15.91932,2322.1,2322.0,0.5]
[1726477294011,18.31272,2322.1,2322.0,0.5]
[1726477298221,15.91932,2322.1,2322.0,0.5]
[1726477298986,4.30718,2321.7,2321.6,2.4801]
[1726477299446,4.30718,2321.7,2321.6,2.52182425]
[1726477305767,4.30702,2321.8,2321.6,2.52182425]
[1726477305768,4.30709,2321.8,2321.6,2.52182425]
[1726477305970,4.30718,2321.7,2321.6,2.52182425]
[1726477306154,4.30718,2321.7,2321.6,2.77400668]
[1726477307169,4.30709,2321.8,2321.6,2.77400668]
[1726477309001,4.30718,2321.7,2321.6,2.77400668]
[1726477311669,4.30718,2321.7,2321.6,2.77271937]
[1726477313491,4.30709,2321.8,2321.6,2.77271937]
[1726477313693,4.30709,2321.8,2321.7,0.27727194]
[1726477314003,4.30709,2321.8,2321.7,0.32014079]
[1726477314592,8.61422,2321.8,2321.7,0.32014079]
[1726477319295,8.61422,2321.8,2321.7,0.04286885]
[1726477321384,15.92135,2321.8,2321.4,2.4626]
[1726477321693,8.6166,2321.1,2321.0,7.4]
[1726477321894,4.30774,2321.4,2321.0,0.74]
[1726477322084,4.30803,2321.3,2321.1,2.2884]
[1726477322290,4.30803,2321.3,2321.2,0.30284]
[1726477324267,8.61606,2321.3,2321.2,0.30284]
[1726477324473,4.30803,2321.3,2320.8,2.2634]
[1726477325010,4.3083,2321.1,2320.8,2.2634]
[1726477325507,4.30814,2321.2,2320.8,6.57222]
[1726477325724,4.30814,2321.2,2321.0,2.2845]
[1726477326499,4.308,2321.3,2321.0,2.2845]
[1726477326798,4.308,2321.3,2321.2,2.3831]
[1726477333209,8.61604,2321.3,2321.2,2.3831]
[1726477333817,4.30845,2321.1,2321.0,2.3967]
[1726477333990,4.30849,2321.0,2320.8,2.3967]
[1726477334186,4.3081,2321.3,2320.9,0.39004769]
[1726477334391,4.37493092,2321.3,2320.9,0.39004769]
[1726477334617,4.3081,2321.3,2320.9,4.69869769]
[1726477334791,4.3081,2321.3,2321.0,1.14040777]
[1726477335521,3.0,2321.4,2321.1,2.4327]
[1726477335742,7.30777,2321.4,2321.2,0.35731078]
[1726477336017,3.0,2321.4,2321.2,0.35731078]
[1726477336259,3.0,2321.6,2321.2,0.35731078]
[1726477336378,7.30746,2321.6,2321.3,3.48206084]
[1726477336578,7.30746,2321.6,2321.3,3.64618207]
[1726477336779,4.30759,2321.5,2321.3,3.64618207]
[1726477336979,4.30739,2321.6,2321.3,2.3235]
[1726477337192,3.0,2321.5,2321.3,2.3235]
[1726477337387,3.0,2321.5,2321.3,3.12137194]
[1726477337594,3.0,2321.7,2321.3,3.12137194]
[1726477337815,7.30719,2321.7,2321.4,2.89724707]
[1726477338021,3.0,2321.5,2321.4,0.86334673]
[1726477338325,3.0,2321.5,2321.4,3.7605951]
[1726477340701,3.0,2321.5,2321.4,2.02224561]
[1726477341337,3.0,2321.5,2321.4,3.76126946]
[1726477343237,2.3997,2322.2,2321.5,2.3179]
[1726477343394,4.30665,2322.0,2321.7,2.4214]
[1726477343592,4.30665,2322.0,2321.8,1.15921877]
[1726477343932,4.30651,2322.1,2321.7,3.32493598]
[1726477344226,4.30651,2322.1,2321.8,3.23912185]
[1726477344526,3.0,2322.0,2321.8,0.34110745]
[1726477344985,6.68208,2322.4,2321.9,2.3128]
[1726477345190,4.30618,2322.3,2322.0,1.42441336]
[1726477345429,4.30634,2322.2,2321.9,2.3128]
[1726477345642,4.30634,2322.2,2322.0,1.15865771]
[1726477345931,4.30634,2322.2,2321.9,2.3128]
[1726477346135,4.30634,2322.2,2322.0,1.15864876]
[1726477346289,4.30634,2322.2,2321.9,2.3128]
[1726477346489,8.61235,2322.3,2321.9,2.3128]
[1726477346932,8.61235,2322.3,2322.0,1.15833869]
[1726477347094,8.61235,2322.3,2321.9,2.3128]
[1726477347288,8.61235,2322.3,2321.9,3.23465349]
[1726477349114,8.61233,2322.3,2321.9,3.23465349]
[1726477349437,4.30627,2322.2,2321.9,3.23465349]
[1726477350135,4.30616,2322.3,2321.9,3.23465349]
[1726477350543,4.30626,2322.2,2321.9,3.23465349]
[1726477351273,4.30626,2322.2,2321.9,2.3128]
[1726477354501,4.3059,2322.4,2321.9,6.61951]
[1726477354739,4.3059,2322.4,2322.0,2.3307]
[1726477355747,4.30607,2322.3,2322.0,2.3307]
[1726477355950,4.30607,2322.3,2322.0,3.53649165]
[1726477356153,8.6119,2322.4,2322.0,3.53649165]
[1726477356351,4.3059,2322.4,2322.0,7.71219476]
[1726477356564,4.3059,2322.4,2322.1,1.20189948]
[1726477357348,8.61192,2322.4,2322.1,1.20189948]
[1726477357684,4.3061,2322.3,2322.1,1.20189948]
[1726477357842,8.61189,2322.4,2322.1,1.20189948]
[1726477358046,4.3059,2322.4,2322.2,2.488]
[1726477358347,4.30564,2322.6,2322.2,3.37940942]
[1726477358549,4.30516,2322.8,2322.4,6.53140311]
[1726477358754,4.30516,2322.8,2322.5,2.3557]
[1726477358973,4.30492,2323.0,2322.5,2.3557]
[1726477359287,4.30492,2323.0,2322.7,2.3557]
[1726477362151,4.30509,2322.9,2322.5,3.20253598]
[1726477362349,4.30523,2322.8,2322.5,2.2991]
[1726477362604,4.30555,2322.6,2322.3,2.4609]
[1726477362812,8.61122,2322.6,2322.3,2.4609]
[1726477363292,8.61117,2322.6,2322.3,2.4609]
[1726477363479,4.30555,2322.6,2322.3,2.4609]
[1726477364288,4.30555,2322.6,2322.3,4.43479631]
[1726477371202,8.61116,2322.6,2322.3,4.43479631]
[1726477371407,8.61116,2322.6,2322.3,4.52090819]
[1726477371704,8.61116,2322.6,2322.3,4.43479631]
[1726477373216,4.30573,2322.5,2322.3,4.43479631]
[1726477373378,4.30607,2322.3,2322.2,8.796]
[1726477376872,4.3059,2322.4,2322.2,8.796]
[1726477377211,4.3059,2322.4,2322.2,14.51280342]
[1726477377584,4.30574,2322.5,2322.2,14.51280342]
[1726477378790,2.4924,2323.0,2322.5,2.4543]
[1726477378990,4.30546,2322.7,2322.5,2.4543]
[1726477379288,4.30551,2322.6,2322.5,2.4543]
[1726477381723,4.30546,2322.7,2322.5,2.4543]
[1726477381901,4.30546,2322.7,2322.6,4.17570311]
[1726477382284,4.30515,2322.8,2322.6,4.17570311]
[1726477382474,4.30466,2323.1,2322.7,0.67161076]
[1726477382720,4.30466,2323.1,2323.0,4.17570311]
[1726477383020,4.3428521,2323.3,2323.1,2.4429]
[1726477383226,4.3428521,2323.3,2323.2,4.17570311]
[1726477383227,0.0385021,2323.3,2323.2,4.17570311]
[1726477383391,0.0385021,2323.3,2323.2,4.83756342]
[1726477383586,0.0385021,2323.3,2323.2,0.66186031]
[1726477384301,4.3427221,2323.3,2323.2,0.66186031]
[1726477384475,0.0385021,2323.3,2323.2,0.66186031]
[1726477384675,0.0385021,2323.3,2323.0,4.17570311]
[1726477384917,0.0385021,2323.3,2323.1,2.4433]
[1726477386617,0.0385021,2323.3,2323.2,4.17570311]
[1726477386916,0.0385021,2323.3,2323.2,4.26178158]
[1726477388518,0.0385021,2323.3,2323.1,2.52937843]
[1726477388718,0.0385021,2323.3,2323.1,3.20418243]
[1726477389123,0.0385021,2323.3,2323.2,4.17570311]
[1726477391697,0.0385021,2323.3,2323.2,4.26177533]
[1726477392022,0.0385021,2324.0,2323.3,2.3457]
[1726477392023,4.30315,2323.9,2323.3,2.3457]
[1726477392236,4.3034,2323.8,2323.5,4.17570311]
[1726477392381,4.3034,2323.8,2323.6,0.42617647]
[1726477394227,4.30210832,2323.8,2323.6,0.42617647]
[1726477394614,4.30348,2323.7,2323.6,2.89517647]
[1726477395628,8.60696,2323.7,2323.6,0.42617647]
[1726477396465,4.30422,2323.3,2323.2,8.796]
[1726477396627,4.3044,2323.2,2323.0,2.4083]
[1726477396826,4.3044,2323.2,2323.1,0.65840031]
[1726477397554,8.60889,2323.2,2323.1,0.65840031]
[1726477397717,2.3557,2323.4,2322.8,4.31]
[1726477397718,4.30496,2322.9,2322.8,2.4384]
[1726477397915,4.30496,2322.9,2322.8,4.71941031]
[1726477401862,8.60992,2322.9,2322.8,2.28101031]
[1726477402067,4.30514,2322.8,2322.7,12.97170311]
[1726477402437,8.61028,2322.8,2322.7,12.97170311]
[1726477402859,8.61028,2322.8,2322.7,8.796]
[1726477403039,8.61028,2322.8,2322.7,10.32031031]
[1726477403358,5.3049,2322.7,2322.2,9.6929]
[1726477403532,5.3049,2322.7,2322.0,1.35400151]
[1726477403533,7.30571,2322.5,2322.0,11.0889]
[1726477403909,12.91932,2322.1,2322.0,8.796]
[1726477404020,8.61288,2322.1,2322.0,8.796]
[1726477406235,8.61288,2322.1,2322.0,10.32246031]
[1726477411246,8.61288,2322.1,2322.0,8.796]
[1726477411446,10.94498,2322.1,2322.0,8.796]
[1726477413100,8.61288,2322.1,2322.0,8.796]
[1726477414255,4.30644,2322.1,2322.0,8.796]
[1726477415088,8.61288,2322.1,2322.0,8.796]
[1726477416198,8.61288,2322.1,2321.6,2.3486]
[1726477416199,4.30718,2321.7,2321.6,2.3486]
[1726477416356,2.2758,2321.9,2321.5,8.796]
[1726477416556,4.30737,2321.6,2321.5,10.04392391]
[1726477416796,8.61474,2321.6,2321.5,8.796]
[1726477416966,8.61586,2321.3,2321.2,0.0385021]
[1726477417367,4.30793,2321.3,2321.2,0.0385021]
[1726477417899,10.8908,2321.6,2321.2,0.0385021]
[1726477418106,3.0,2321.5,2321.2,0.55468682]
[1726477418401,7.30766,2321.5,2321.2,0.55468682]
[1726477418571,7.30766,2321.5,2321.2,0.468538]
[1726477421305,4.30776,2321.4,2321.2,0.468538]
[1726477421464,3.0,2321.5,2321.2,0.468538]
[1726477421465,7.30757,2321.5,2321.2,0.468538]
[1726477421671,7.30757,2321.5,2321.2,0.55468812]
[1726477422379,7.30757,2321.5,2321.2,0.468538]
[1726477424216,4.75694248,2322.3,2321.4,4.30772]
[1726477424217,4.30671,2322.0,2321.4,4.30772]
[1726477424509,4.30647,2322.1,2321.7,4.17570311]
[1726477424718,4.30647,2322.1,2321.8,1.16314791]
[1726477424873,8.61279,2322.2,2321.8,1.16314791]
[1726477425074,2.3346,2322.3,2321.9,4.17570311]
[1726477425075,4.3062,2322.3,2321.9,4.17570311]
[1726477425306,4.3062,2322.3,2322.0,1.05070363]
[1726477426008,4.30582,2322.5,2322.0,3.47780363]
[1726477426195,4.30582,2322.5,2322.1,4.17570311]
[1726477426379,4.30543,2322.7,2322.3,4.17570311]
[1726477426583,4.30543,2322.7,2322.4,0.08610807]
[1726477427212,8.61086,2322.7,2322.4,0.08610807]
[1726477428381,4.30553,2322.6,2322.4,0.08610807]
[1726477428605,4.30553,2322.6,2322.3,6.63221298]
[1726477428811,4.30582,2322.5,2322.1,4.95416447]
[1726477429113,0.45079761,2323.4,2321.9,16.196]
[1726477429114,4.30641,2322.2,2321.9,16.196]
[1726477429274,4.30641,2322.2,2321.9,8.796]
[1726477433109,4.30641,2322.2,2321.9,12.97170311]
[1726477433886,4.30641,2322.2,2322.0,1.29717031]
[1726477434085,4.30641,2322.2,2322.0,3.61787031]
[1726477434525,4.30618,2322.3,2322.0,3.61787031]
[1726477436028,4.30627,2322.2,2322.0,3.61787031]
[1726477436317,4.30626,2322.2,2321.9,8.796]
[1726477437099,4.30634,2322.2,2321.9,12.97170311]
[1726477437323,4.30637,2322.2,2321.9,10.77005831]
[1726477437524,5.3839,2322.4,2321.9,8.796]
[1726477437525,4.30663,2322.0,2321.9,8.796]
[1726477437826,4.30708,2321.8,2321.4,7.4]
[1726477437989,4.30708,2321.8,2321.4,1.26433884]
[1726477438189,4.30746,2321.6,2321.4,1.26433884]
[1726477438416,4.30746,2321.6,2321.3,2.286]
[1726477439924,8.6143,2321.8,2321.3,2.286]
[1726477440085,4.3072,2321.7,2321.3,10.76959311]
[1726477440285,4.3072,2321.7,2321.4,1.54284321]
[1726477441085,2.2862,2322.4,2321.7,2.3273]
[1726477441280,4.30395,2323.5,2322.2,4.17570311]
[1726477441281,2.2862,2322.7,2322.2,4.17570311]
[1726477441485,4.30552,2322.6,2322.3,0.08610856]
[1726477441727,4.30552,2322.6,2322.2,4.26181263]
[1726477441908,4.30552,2322.6,2322.2,5.35135589]
[1726477442116,6.59155,2322.7,2322.2,5.35135589]
[1726477442300,4.30528,2322.8,2322.3,4.39208952]
[1726477442898,8.61055,2322.8,2322.3,4.39208952]
[1726477443101,4.30527,2322.8,2322.3,5.1293835]
[1726477443322,4.30525,2322.8,2322.3,5.1293835]
[1726477443628,3.0,2322.7,2322.3,5.1293835]
[1726477446417,3.0,2322.7,2322.3,5.1293735]
[1726477447202,3.0,2322.7,2322.3,9.4353635]
[1726477447426,3.0,2322.7,2322.3,5.1293735]
[1726477447608,3.0,2322.7,2322.3,9.4353435]
[1726477447808,3.0,2322.7,2322.4,1.64360295]
[1726477448325,3.0,2322.7,2322.4,5.81930606]
[1726477448531,5.3948,2322.9,2322.5,4.30556]
[1726477448736,3.0,2322.9,2322.5,6.67606]
[1726477449067,4.30484,2323.0,2322.6,5.48531845]
[1726477449068,3.0,2323.0,2322.6,5.48531845]
[1726477449434,3.0,2323.0,2322.6,9.66102156]
[1726477449637,7.30478,2323.0,2322.6,9.66102156]
[1726477449865,7.30478,2323.0,2322.7,1.20315216]
[1726477451186,2.2691,2323.3,2322.7,1.20315216]
[1726477451187,3.0,2323.3,2322.9,6.77448]
[1726477451332,4.30425,2323.3,2322.9,6.77455]
[1726477451529,4.30425,2323.3,2322.9,3.99514631]
[1726477451733,4.30441,2323.2,2322.9,1.52554631]
[1726477451970,4.30441,2323.2,2322.8,4.30508]
[1726477452886,4.30441,2323.2,2322.7,6.74335]
[1726477453094,4.30441,2323.2,2322.6,8.48116311]
[1726477453095,7.30473,2323.1,2322.6,8.48113311]
[1726477453261,7.30473,2323.1,2322.7,0.84811331]
[1726477453666,3.0,2323.1,2322.8,4.17570311]
[1726477454976,3.0,2323.1,2322.6,8.48114311]
[1726477455180,6.67257,2323.0,2322.6,4.30544]
[1726477455376,6.67257,2323.0,2322.7,0.663264]
[1726477457196,3.0,2323.1,2322.8,4.17570311]
[1726477457404,4.3044,2323.2,2322.9,2.4964]
[1726477457697,3.0,2323.1,2322.9,2.98029671]
[1726477458902,7.30472,2323.1,2322.9,0.48389671]
[1726477459198,7.30472,2323.1,2322.7,3.037264]
[1726477459199,4.30487,2323.0,2322.7,3.037264]
[1726477461498,4.30487,2323.0,2322.7,0.663264]
[1726477461499,6.73877,2323.0,2322.7,0.663264]
[1726477465197,3.0,2323.1,2322.7,0.74936347]
[1726477465376,3.0,2323.1,2322.8,0.91444571]
[1726477465561,7.30466,2323.1,2322.8,0.91444571]
[1726477467168,4.30485,2323.0,2322.7,0.663264]
[1726477467500,7.30466,2323.1,2322.6,4.30543]
[1726477467659,7.30466,2323.1,2322.6,8.56722929]
[1726477467886,7.30466,2323.1,2322.7,4.30533]
[1726477468217,7.30466,2323.1,2322.8,1.28725593]
[1726477468420,11.60935,2323.1,2322.8,1.28725593]
[1726477470128,11.60935,2323.1,2322.8,3.71055593]
[1726477471711,7.30466,2323.1,2322.8,3.71055593]
[1726477472026,11.60936,2323.1,2322.8,3.71055593]
[1726477472501,7.30466,2323.1,2322.8,3.71055593]
[1726477472831,11.60936,2323.1,2322.8,3.71055593]
[1726477473026,11.60936,2323.1,2322.8,2.4233]
[1726477473325,11.60935,2323.1,2322.8,2.4233]
[1726477473531,7.30466,2323.1,2322.8,2.4233]
[1726477473702,11.60933,2323.1,2322.8,2.4233]
[1726477474102,7.30466,2323.1,2322.8,2.4233]
[1726477477004,11.60935,2323.1,2322.7,4.30533]
[1726477477204,7.30466,2323.1,2322.7,4.30533]
[1726477477424,4.30478,2323.0,2322.6,10.74981311]
[1726477477641,4.30478,2323.0,2322.6,12.93732713]
[1726477478298,7.30466,2323.1,2322.6,12.93732713]
[1726477478502,11.60939,2323.1,2322.7,1.15862815]
[1726477478807,11.60939,2323.1,2322.6,12.93732713]
[1726477479133,4.30478,2323.0,2322.7,2.97220882]
[1726477479298,4.30478,2323.0,2322.7,1.81401834]
[1726477481340,4.30478,2323.0,2322.7,1.90011477]
[1726477483153,4.30478,2323.0,2322.7,1.81401834]
[1726477484241,4.30478,2323.0,2322.8,1.16286554]
[1726477484438,4.30478,2323.0,2322.7,1.81401834]
[1726477484614,4.30478,2323.0,2322.8,1.16285536]
[1726477484816,4.30478,2323.0,2322.7,1.81401834]
[1726477485016,4.30478,2323.0,2322.8,1.16286657]
[1726477485224,4.30478,2323.0,2322.9,1.16286657]
[1726477485518,6.73181,2322.9,2322.7,0.8972563]
[1726477485830,6.73181,2322.9,2322.8,2.910438]
[1726477486930,6.73181,2322.9,2322.8,1.1641752]
[1726477487526,6.73181,2322.9,2322.8,2.91062799]
[1726477488117,6.73181,2322.9,2322.8,1.1641752]
[1726477488551,6.73181,2322.9,2322.8,2.9111748]
[1726477492058,4.30501,2322.9,2322.8,2.9111748]
[1726477492462,4.30478,2323.0,2322.8,6.21326288]
[1726477492626,4.30496,2322.9,2322.8,3.3003563]
[1726477492827,4.30496,2322.9,2322.8,6.21301367]
[1726477494854,4.30496,2322.9,2322.8,3.3003563]
[1726477495337,4.30496,2322.9,2322.8,6.21414653]
[1726477495924,4.30496,2322.9,2322.8,8.13949499]
[1726477496265,4.30496,2322.9,2322.8,5.73639499]
[1726477496940,4.30496,2322.9,2322.8,4.5708789]
[1726477497262,4.30496,2322.9,2322.8,2.64553044]
[1726477497463,4.30496,2322.9,2322.8,0.8972563]
[1726477498349,8.60992,2322.9,2322.8,0.8972563]
[1726477498681,8.67675092,2322.9,2322.8,0.8972563]
[1726477500679,8.60992,2322.9,2322.8,0.8972563]
[1726477500868,18.22998,2322.9,2322.8,0.8972563]
[1726477502338,13.92502,2322.9,2322.8,0.8972563]
[1726477506599,11.60992,2322.9,2322.8,0.8972563]
[1726477507204,2.4727,2323.1,2322.8,0.8972563]
[1726477507503,2.4727,2323.1,2322.9,0.22431408]
[1726477507504,7.30485,2323.0,2322.9,0.22431408]
[1726477507805,7.30485,2323.0,2322.9,1.389487]
[1726477508012,11.61028,2322.8,2322.7,0.8972563]
[1726477508168,13.87572,2322.8,2322.7,1.16549155]
[1726477508372,4.30551,2322.6,2322.5,0.8972563]
[1726477508600,8.61102,2322.6,2322.5,2.91396013]
[1726477508908,8.61102,2322.6,2322.5,2.91397372]
[1726477509404,8.61102,2322.6,2322.5,1.16558949]
[1726477510580,5.2653,2322.8,2322.3,0.8972563]
[1726477510581,4.30574,2322.5,2322.3,0.8972563]
[1726477510784,4.30574,2322.5,2322.4,2.91325807]
[1726477511876,4.30534,2322.7,2322.5,2.4924]
[1726477512486,8.61076,2322.7,2322.5,2.4924]
[1726477512772,4.30551,2322.6,2322.5,2.4924]
[1726477512975,4.30551,2322.6,2322.5,6.05390654]
[1726477513479,4.30551,2322.6,2322.5,3.56150654]
[1726477514488,4.30534,2322.7,2322.5,3.56150654]
[1726477514679,4.30534,2322.7,2322.5,0.64857597]
[1726477514875,8.61077,2322.7,2322.5,0.64857597]
[1726477515213,4.30472,2323.1,2322.7,2.3078]
[1726477515374,4.30479,2323.0,2322.8,7.08500721]
[1726477515569,4.30479,2323.0,2322.9,1.16460048]
[1726477516397,4.30469,2323.1,2322.9,1.16460048]
[1726477516630,8.60938,2323.1,2322.8,0.94333747]
[1726477516787,8.60938,2323.1,2322.9,1.1652741]
[1726477516980,8.60938,2323.1,2322.8,0.94333747]
[1726477517182,8.60938,2323.1,2322.9,1.16526191]
[1726477517401,8.60938,2323.1,2322.8,0.94333747]
[1726477517730,4.30469,2323.1,2322.9,1.16269631]
[1726477517883,4.30469,2323.1,2322.8,0.94333747]
[1726477518089,4.30469,2323.1,2322.9,1.1626978]
[1726477518290,4.30469,2323.1,2322.8,0.94333747]
[1726477518617,4.30469,2323.1,2322.9,1.16271292]
[1726477518820,4.30469,2323.1,2322.8,0.94333747]
[1726477519022,4.30469,2323.1,2322.9,1.5866594]
[1726477519220,7.30443,2323.2,2322.9,0.42396909]
[1726477522536,3.0,2323.2,2322.8,1.84579347]
[1726477522831,4.30496,2322.9,2322.7,2.3078]
[1726477522977,4.30496,2322.9,2322.8,1.16276165]
[1726477523183,4.30496,2322.9,2322.7,3.3270651]
[1726477523531,4.30496,2322.9,2322.7,2.3078]
[1726477526823,4.30496,2322.9,2322.6,0.902456]
[1726477527138,4.30496,2322.9,2322.7,2.90729083]
[1726477527311,3.0,2323.1,2322.7,2.3276]
[1726477527312,7.3047,2323.1,2322.7,2.3276]
[1726477527628,4.30478,2323.0,2322.8,9.15300369]
[1726477527928,4.30478,2323.0,2322.9,2.90712842]
[1726477528226,11.60944,2323.1,2322.9,2.90712842]
[1726477528393,11.60944,2323.1,2323.0,1.16288777]
[1726477529194,11.60944,2323.1,2322.8,6.24587527]
[1726477529499,11.60944,2323.1,2322.9,2.9065121]
[1726477529709,11.60944,2323.1,2322.8,6.24587527]
[1726477529894,11.60944,2323.1,2322.9,2.9063811]
[1726477530097,11.60944,2323.1,2322.8,6.24587527]
[1726477530334,11.60944,2323.1,2322.9,2.90633938]
[1726477530532,11.60944,2323.1,2322.8,6.24587527]
[1726477530694,11.60944,2323.1,2322.9,2.90627548]
[1726477530895,11.60944,2323.1,2322.8,6.24587527]
[1726477531095,11.60944,2323.1,2322.9,2.90628798]
[1726477531311,11.60941,2323.1,2322.8,6.24587527]
[1726477531665,4.30434,2323.3,2323.0,6.4957097]
[1726477531956,8.60867,2323.3,2323.1,1.16246849]
[1726477532233,8.60867,2323.3,2323.1,0.08169285]
[1726477532234,4.30433,2323.3,2323.1,0.08169285]
[1726477532595,4.30433,2323.3,2323.1,0.9288723]
[1726477532791,4.3044,2323.2,2323.1,0.08169285]
[1726477532994,4.30462,2323.1,2322.8,0.902456]
[1726477533234,4.30462,2323.1,2322.9,1.24217618]
[1726477533531,4.30462,2323.1,2322.9,0.07977809]
[1726477534336,6.7942,2323.2,2322.9,0.07977809]
[1726477534542,4.3044,2323.2,2322.9,0.07977809]
[1726477534836,4.30451,2323.2,2322.9,0.07977809]
[1726477535128,4.30451,2323.2,2323.0,1.16222078]
[1726477535300,4.30451,2323.2,2322.9,1.54974185]
[1726477535513,4.30451,2323.2,2323.0,1.16221181]
[1726477535759,4.30451,2323.2,2322.9,1.54974185]
[1726477536048,4.30451,2323.2,2323.0,1.16214894]
[1726477536249,4.30451,2323.2,2323.1,0.07957499]
[1726477536456,4.30451,2323.2,2322.8,6.64556498]
[1726477536664,4.3046,2323.1,2322.9,4.44683786]
[1726477536826,4.3046,2323.1,2322.9,1.54156093]
[1726477537028,4.3046,2323.1,2323.0,1.16211277]
[1726477537226,4.3046,2323.1,2322.8,6.55947198]
[1726477537451,4.3046,2323.1,2322.9,2.98492614]
[1726477537765,4.3046,2323.1,2322.9,0.07957499]
[1726477540138,4.30477,2323.0,2322.9,0.07957499]
[1726477540676,4.30477,2323.0,2322.7,3.225556]
[1726477540955,4.30477,2323.0,2322.8,2.98500442]
[1726477541115,4.30477,2323.0,2322.8,0.07957499]
[1726477542631,4.30477,2323.0,2322.9,1.16220209]
[1726477543055,4.30468,2323.1,2322.9,1.24177708]
[1726477543260,4.30468,2323.1,2322.9,0.07957499]
[1726477543485,4.30468,2323.1,2322.8,0.08609311]
[1726477543787,4.30468,2323.1,2322.9,1.24176067]
[1726477543971,4.30468,2323.1,2322.9,0.07957499]
[1726477544544,4.30468,2323.1,2322.8,5.16115881]
[1726477544744,4.30468,2323.1,2323.0,0.07957499]
[1726477545245,4.30468,2323.1,2322.8,5.16115881]
[1726477545583,4.30468,2323.1,2323.0,2.3521]
[1726477546143,4.30468,2323.1,2323.0,2.43167499]
[1726477547643,8.60895,2323.2,2323.0,2.43167499]
[1726477547981,4.30459,2323.1,2323.0,0.07957499]
[1726477548384,4.30459,2323.1,2322.8,5.18478887]
[1726477548698,4.30459,2323.1,2322.9,2.8928079]
[1726477548858,4.30443,2323.2,2323.0,0.07958568]
[1726477549056,4.30443,2323.2,2323.0,1.92523287]
[1726477549379,7.30443,2323.2,2323.1,0.07958568]
[1726477550280,4.30423,2323.3,2323.1,0.07958568]
[1726477551057,8.60856,2323.3,2323.1,0.07958568]
[1726477551364,4.30423,2323.3,2323.1,0.07958568]